[Event "RUS-ch Rapid 2021"]
[Site "Sochi"]
[Date "2021.10.13"]
[Round "7.8"]
[White "Savchenko, Boris"]
[Black "Dreev, Aleksey"]
[Result "1/2-1/2"]
[ECO "B29"]
[WhiteElo "2535"]
[BlackElo "2635"]
[Annotator "RC"]
[PlyCount "52"]
[EventDate "2021.10.12"]
[EventType "swiss"]
[EventCountry "RUS"]
[SourceTitle "playchess.com"]
[Source "ChessBase"]
[SourceQuality "1"]
[TimeControl "900+10"]

1. e4 {[%emt 0:00:00]} c5 {[%emt 0:00:16]} 2. Nf3 {[%emt 0:00:02]} Nf6 {
[%emt 0:00:02]} 3. e5 {[%emt 0:00:10]} Nd5 {[%emt 0:00:00]} 4. Nc3 {[%emt 0:00:
00]} e6 {[%emt 0:00:02]} 5. Nxd5 {[%emt 0:00:08]} exd5 {[%emt 0:00:01]} 6. d4 {
[%emt 0:00:00]} Nc6 {[%emt 0:00:11]} 7. dxc5 {[%emt 0:00:00]} Bxc5 {[%emt 0:00:
02]} 8. Qxd5 {[%emt 0:00:00]} d6 {[%emt 0:01:26]} 9. exd6 {[%emt 0:00:42]} Qb6
{[%emt 0:01:02]} 10. Qe4+ {[%emt 0:00:26]} Be6 {[%emt 0:00:08]} 11. Bc4 {
[%emt 0:00:00]} Bxf2+ {[%emt 0:00:56]} 12. Ke2 {[%emt 0:00:47]} O-O {[%emt 0:
02:58]} 13. Bxe6 {[%emt 0:00:00]} Rae8 {[%emt 0:00:23]} 14. Ng5 {[%emt 0:01:35]
} Rxe6 {[%emt 0:00:04]} 15. Nxe6 {[%emt 0:00:00]} Re8 {[%emt 0:00:00]} 16. Rf1
{[%emt 0:02:32]} Rxe6 {[%emt 0:00:52]} 17. Qxe6 {[%emt 0:00:07]} fxe6 {[%emt 0:
00:00]} 18. Rxf2 {[%emt 0:00:00]} Qb5+ {[%emt 0:00:53]} 19. Kd2 {[%emt 0:01:53]
} Qd5+ {[%emt 0:01:24]} 20. Ke1 {[%emt 0:01:35]} Qe5+ {[%emt 0:00:35]} 21. Kf1
{[%emt 0:00:44]} Qxh2 {[%emt 0:00:23]} 22. d7 {[%emt 0:00:43]} Qh1+ {[%emt 0:
00:45]} 23. Ke2 {[%emt 0:00:00]} Qh5+ {[%emt 0:00:06]} 24. Ke1 {[%emt 0:00:07]}
Qh1+ {[%emt 0:00:48]} 25. Ke2 {[%emt 0:01:05]} Qh5+ {[%emt 0:00:09]} 26. Ke1 {
[%emt 0:00:05]} Nb8 {[%emt 0:00:04]} 1/2-1/2

[Event "RUS-ch Rapid 2021"]
[Site "Sochi"]
[Date "2021.10.13"]
[Round "7.9"]
[White "Pridorozhni, Aleksei"]
[Black "Kobalia, Mikhail"]
[Result "1-0"]
[ECO "B11"]
[WhiteElo "2564"]
[BlackElo "2600"]
[Annotator "RC"]
[PlyCount "87"]
[EventDate "2021.10.12"]
[EventType "swiss"]
[EventCountry "RUS"]
[SourceTitle "playchess.com"]
[Source "ChessBase"]
[SourceQuality "1"]
[TimeControl "900+10"]

1. e4 {[%emt 0:00:00]} c6 {[%emt 0:00:03]} 2. Nc3 {[%emt 0:00:11]} d5 {[%emt 0:
00:03]} 3. Nf3 {[%emt 0:00:03]} dxe4 {[%emt 0:00:01]} 4. Nxe4 {[%emt 0:00:00]}
Nf6 {[%emt 0:00:00]} 5. Qe2 {[%emt 0:00:00]} Nxe4 {[%emt 0:00:06]} 6. Qxe4 {
[%emt 0:00:00]} Be6 {[%emt 0:00:02]} 7. Qe3 {[%emt 0:00:16]} Bf5 {[%emt 0:00:
51]} 8. c4 {[%emt 0:00:04]} e6 {[%emt 0:00:23]} 9. b3 {[%emt 0:00:43]} Na6 {
[%emt 0:01:15]} 10. a3 {[%emt 0:00:00]} Nc5 {[%emt 0:00:29]} 11. d4 {[%emt 0:
00:20]} Ne4 {[%emt 0:00:08]} 12. Bd3 {[%emt 0:01:26]} Qa5+ {[%emt 0:01:16]} 13.
Kf1 {[%emt 0:00:54]} Qc3 {[%emt 0:00:37]} 14. Bxe4 {[%emt 0:00:06]} Qxe3 {
[%emt 0:00:05]} 15. Bxc6+ {[%emt 0:00:17]} bxc6 {[%emt 0:00:00]} 16. Bxe3 {
[%emt 0:00:02]} Rb8 {[%emt 0:00:28]} 17. Nd2 {[%emt 0:00:00]} Bd3+ {[%emt 0:00:
03]} 18. Ke1 {[%emt 0:00:19]} Be7 {[%emt 0:00:43]} 19. f3 {[%emt 0:00:47]} O-O
{[%emt 0:00:01]} 20. Kf2 {[%emt 0:00:08]} Rfd8 {[%emt 0:00:06]} 21. Ra2 {
[%emt 0:00:42]} Bf6 {[%emt 0:00:09]} 22. Rd1 {[%emt 0:00:13]} Bg6 {[%emt 0:00:
42]} 23. b4 {[%emt 0:00:40]} Bxd4 {[%emt 0:00:04]} 24. Bxd4 {[%emt 0:00:05]}
Rxd4 {[%emt 0:00:10]} 25. Rc1 {[%emt 0:00:02]} Rd3 {[%emt 0:00:54]} 26. c5 {
[%emt 0:00:03]} e5 {[%emt 0:01:15]} 27. Nc4 {[%emt 0:00:49]} f6 {[%emt 0:00:00]
} 28. Ke2 {[%emt 0:01:07]} e4 {[%emt 0:00:50]} 29. fxe4 {[%emt 0:01:02]} Bxe4 {
[%emt 0:00:05]} 30. Nd6 {[%emt 0:00:02]} Bg6 {[%emt 0:00:32]} 31. b5 {[%emt 0:
01:49]} cxb5 {[%emt 0:00:17]} 32. Rd2 {[%emt 0:00:02]} Rxd2+ {[%emt 0:00:59]}
33. Kxd2 {[%emt 0:00:00]} Be8 {[%emt 0:00:07]} 34. Nxe8 {[%emt 0:00:53]} Rxe8 {
[%emt 0:00:00]} 35. Kc3 {[%emt 0:00:00]} a5 {[%emt 0:01:27]} 36. c6 {[%emt 0:
00:00]} Kf7 {[%emt 0:00:28]} 37. Kd4 {[%emt 0:00:19]} Ke7 {[%emt 0:01:56]} 38.
Re1+ {[%emt 0:00:45]} Kf7 {[%emt 0:00:00]} 39. Rxe8 {[%emt 0:00:03]} Kxe8 {
[%emt 0:00:00]} 40. Kc5 {[%emt 0:00:00]} Kd8 {[%emt 0:01:24]} 41. Kxb5 {
[%emt 0:00:00]} Kc7 {[%emt 0:00:02]} 42. Kxa5 {[%emt 0:00:11]} Kxc6 {[%emt 0:
00:00]} 43. Kb4 {[%emt 0:00:00]} f5 {[%emt 0:01:04]} 44. Kc4 {[%emt 0:00:00]}
1-0

[Event "RUS-ch Rapid 2021"]
[Site "Sochi"]
[Date "2021.10.13"]
[Round "7.10"]
[White "Kokarev, Dmitry"]
[Black "Khegay, Dmitriy"]
[Result "1-0"]
[ECO "C96"]
[WhiteElo "2579"]
[BlackElo "2521"]
[Annotator "ChessBase"]
[PlyCount "103"]
[EventDate "2021.10.12"]
[EventType "swiss"]
[EventCountry "RUS"]
[SourceTitle "playchess.com"]
[Source "ChessBase"]
[SourceQuality "1"]
[TimeControl "900+10"]

1. e4 {[%emt 0:00:04]} e5 {[%emt 0:01:49]} 2. Nf3 {[%emt 0:00:00]} Nc6 {
[%emt 0:00:01]} 3. Bb5 {[%emt 0:00:12]} a6 {[%emt 0:00:02]} 4. Ba4 {[%emt 0:00:
03]} Nf6 {[%emt 0:00:00]} 5. O-O {[%emt 0:00:00]} Be7 {[%emt 0:00:01]} 6. Re1 {
[%emt 0:00:04]} b5 {[%emt 0:00:00]} 7. Bb3 {[%emt 0:00:03]} d6 {[%emt 0:00:04]}
8. c3 {[%emt 0:00:00]} O-O {[%emt 0:00:02]} 9. h3 {[%emt 0:00:00]} Na5 {
[%emt 0:00:07]} 10. Bc2 {[%emt 0:00:12]} c5 {[%emt 0:00:00]} 11. d4 {[%emt 0:
00:00]} Nd7 {[%emt 0:00:00]} 12. a4 {[%emt 0:00:07]} Bb7 {[%emt 0:00:12]} 13.
d5 {[%emt 0:00:00]} Qc7 {[%emt 0:00:04]} 14. b4 {[%emt 0:00:19]} Nc4 {[%emt 0:
00:00]} 15. Nfd2 {[%emt 0:00:11]} f5 {[%emt 0:00:06]} 16. Nxc4 {[%emt 0:00:30]}
bxc4 {[%emt 0:00:04]} 17. exf5 {[%emt 0:01:25]} Nf6 {[%emt 0:00:17]} 18. Bg5 {
[%emt 0:00:15]} Nxd5 {[%emt 0:01:41]} 19. Be4 {[%emt 0:00:04]} Bxg5 {[%emt 0:
04:47]} 20. Bxd5+ {[%emt 0:00:04]} Bxd5 {[%emt 0:00:06]} 21. Qxd5+ {[%emt 0:00:
02]} Kh8 {[%emt 0:00:00]} 22. bxc5 {[%emt 0:00:33]} Qxc5 {[%emt 0:00:07]} 23.
Qxc5 {[%emt 0:00:09]} dxc5 {[%emt 0:00:01]} 24. Rxe5 {[%emt 0:00:11]} Rad8 {
[%emt 0:00:00]} 25. Na3 {[%emt 0:00:15]} Bd2 {[%emt 0:00:04]} 26. Rxc5 {
[%emt 0:00:10]} Bxc3 {[%emt 0:00:00]} 27. Rb1 {[%emt 0:00:04]} Rd2 {[%emt 0:02:
29]} 28. Nxc4 {[%emt 0:00:36]} Rxf2 {[%emt 0:01:06]} 29. Kxf2 {[%emt 0:00:40]}
Bd4+ {[%emt 0:00:06]} 30. Kf3 {[%emt 0:00:31]} Bxc5 {[%emt 0:00:00]} 31. Ke4 {
[%emt 0:00:00]} g6 {[%emt 0:00:03]} 32. fxg6 {[%emt 0:00:13]} hxg6 {[%emt 0:00:
00]} 33. Rb7 {[%emt 0:00:46]} Rf2 {[%emt 0:00:35]} 34. g4 {[%emt 0:00:43]} Kg8
{[%emt 0:04:34]} 35. Kd5 {[%emt 0:00:28]} Bf8 {[%emt 0:00:17]} 36. Rb6 {
[%emt 0:00:10]} Rh2 {[%emt 0:00:24]} 37. Rxg6+ {[%emt 0:00:09]} Kh7 {[%emt 0:
00:08]} 38. Rxa6 {[%emt 0:00:18]} Rxh3 {[%emt 0:00:01]} 39. a5 {[%emt 0:00:11]}
Rg3 {[%emt 0:00:47]} 40. Ne5 {[%emt 0:00:43]} Bg7 {[%emt 0:00:08]} 41. Ra7 {
[%emt 0:00:34]} Kg8 {[%emt 0:00:11]} 42. a6 {[%emt 0:00:10]} Ra3 {[%emt 0:00:
23]} 43. Nc6 {[%emt 0:00:20]} Kh7 {[%emt 0:00:13]} 44. Ne5 {[%emt 0:04:15]} Kg8
{[%emt 0:00:45]} 45. Nc4 {[%emt 0:00:11]} Rd3+ {[%emt 0:00:17]} 46. Kc6 {
[%emt 0:00:41]} Rc3 {[%emt 0:00:18]} 47. Kc5 {[%emt 0:00:17]} Rd3 {[%emt 0:00:
23]} 48. Rb7 {[%emt 0:02:27]} Bd4+ {[%emt 0:00:02]} 49. Kc6 {[%emt 0:00:32]}
Rg3 {[%emt 0:00:21]} 50. Nb6 {[%emt 0:00:11]} Rc3+ {[%emt 0:00:08]} 51. Kd5 {
[%emt 0:00:09]} Bxb6 {[%emt 0:00:15]} 52. Rxb6 {[%emt 0:00:04]} 1-0

[Event "RUS-ch Rapid 2021"]
[Site "Sochi"]
[Date "2021.10.13"]
[Round "7.11"]
[White "Afanasiev, Nikita"]
[Black "Nesterov, Arseniy"]
[Result "1/2-1/2"]
[ECO "A12"]
[WhiteElo "2560"]
[BlackElo "2514"]
[Annotator "ChessBase"]
[PlyCount "89"]
[EventDate "2021.10.12"]
[EventType "swiss"]
[EventCountry "RUS"]
[SourceTitle "playchess.com"]
[Source "ChessBase"]
[SourceQuality "1"]
[TimeControl "900+10"]

1. c4 {[%emt 0:01:28]} c6 {[%emt 0:00:08]} 2. Nf3 {[%emt 0:00:13]} d5 {[%emt 0:
00:00]} 3. e3 {[%emt 0:00:00]} Nf6 {[%emt 0:00:06]} 4. b3 {[%emt 0:00:06]} Bf5
{[%emt 0:00:36]} 5. Bb2 {[%emt 0:00:05]} e6 {[%emt 0:00:02]} 6. Be2 {[%emt 0:
00:31]} h6 {[%emt 0:00:34]} 7. O-O {[%emt 0:00:00]} Nbd7 {[%emt 0:00:15]} 8.
Nc3 {[%emt 0:00:36]} Be7 {[%emt 0:00:01]} 9. Qc1 {[%emt 0:01:03]} O-O {[%emt 0:
00:11]} 10. Ba3 {[%emt 0:00:00]} e5 {[%emt 0:01:45]} 11. d4 {[%emt 0:00:09]} e4
{[%emt 0:00:06]} 12. Ne5 {[%emt 0:01:23]} Re8 {[%emt 0:00:06]} 13. Nxd7 {
[%emt 0:01:59]} Bxd7 {[%emt 0:00:08]} 14. Bxe7 {[%emt 0:01:11]} Qxe7 {[%emt 0:
00:03]} 15. Qd2 {[%emt 0:00:35]} h5 {[%emt 0:01:40]} 16. Rac1 {[%emt 0:00:11]}
Bg4 {[%emt 0:01:08]} 17. cxd5 {[%emt 0:00:42]} cxd5 {[%emt 0:00:05]} 18. Nb5 {
[%emt 0:00:12]} Red8 {[%emt 0:00:11]} 19. Rc7 {[%emt 0:00:19]} Rd7 {[%emt 0:00:
08]} 20. Rfc1 {[%emt 0:01:15]} a6 {[%emt 0:00:24]} 21. Rxd7 {[%emt 0:00:19]}
Qxd7 {[%emt 0:00:40]} 22. Nc3 {[%emt 0:00:13]} Rc8 {[%emt 0:00:36]} 23. h3 {
[%emt 0:00:02]} Bxe2 {[%emt 0:00:32]} 24. Nxe2 {[%emt 0:00:11]} Rc6 {[%emt 0:
02:21]} 25. Rc5 {[%emt 0:00:19]} Qd6 {[%emt 0:03:12]} 26. Qa5 {[%emt 0:01:08]}
g6 {[%emt 0:00:39]} 27. Nf4 {[%emt 0:01:20]} Kg7 {[%emt 0:01:32]} 28. h4 {
[%emt 0:00:20]} b6 {[%emt 0:01:00]} 29. Rxc6 {[%emt 0:01:14]} Qxc6 {[%emt 0:00:
04]} 30. Qd2 {[%emt 0:00:01]} a5 {[%emt 0:00:10]} 31. f3 {[%emt 0:00:36]} exf3
{[%emt 0:00:31]} 32. gxf3 {[%emt 0:00:00]} Ne8 {[%emt 0:00:11]} 33. Qb2 {
[%emt 0:00:22]} Qf6 {[%emt 0:01:02]} 34. Qf2 {[%emt 0:00:20]} Qc6 {[%emt 0:00:
24]} 35. Qb2 {[%emt 0:01:58]} Qf6 {[%emt 0:00:00]} 36. Nxd5 {[%emt 0:00:34]}
Qxh4 {[%emt 0:00:01]} 37. Qg2 {[%emt 0:00:15]} Qe1+ {[%emt 0:00:05]} 38. Kh2 {
[%emt 0:00:07]} Qh4+ {[%emt 0:00:07]} 39. Qh3 {[%emt 0:00:03]} Qf2+ {[%emt 0:
00:03]} 40. Qg2 {[%emt 0:00:12]} Qh4+ {[%emt 0:00:10]} 41. Qh3 {[%emt 0:00:00]}
Qf2+ {[%emt 0:00:14]} 42. Qg2 {[%emt 0:00:05]} Qh4+ {[%emt 0:00:06]} 43. Qh3 {
[%emt 0:00:00]} Qf2+ {[%emt 0:00:05]} 44. Qg2 {[%emt 0:00:02]} Qh4+ {[%emt 0:
00:04]} 45. Qh3 {[%emt 0:00:13]} 1/2-1/2

[Event "RUS-ch Rapid 2021"]
[Site "Sochi"]
[Date "2021.10.13"]
[Round "7.12"]
[White "Khanin, Semen"]
[Black "Vastrukhin, Oleg"]
[Result "0-1"]
[ECO "B12"]
[WhiteElo "2521"]
[BlackElo "2382"]
[Annotator "RC"]
[PlyCount "124"]
[EventDate "2021.10.12"]
[EventType "swiss"]
[EventCountry "RUS"]
[SourceTitle "playchess.com"]
[Source "ChessBase"]
[SourceQuality "1"]
[TimeControl "900+10"]

1. e4 {[%emt 0:00:50]} g6 {[%emt 0:00:04]} 2. d4 {[%emt 0:00:00]} Bg7 {[%emt 0:
00:03]} 3. Nf3 {[%emt 0:00:02]} c6 {[%emt 0:00:01]} 4. c3 {[%emt 0:00:27]} d5 {
[%emt 0:00:04]} 5. Nbd2 {[%emt 0:00:00]} dxe4 {[%emt 0:00:25]} 6. Nxe4 {
[%emt 0:00:02]} Nf6 {[%emt 0:00:09]} 7. Nxf6+ {[%emt 0:00:41]} exf6 {[%emt 0:
00:00]} 8. Bd3 {[%emt 0:00:13]} O-O {[%emt 0:00:04]} 9. O-O {[%emt 0:00:03]} a5
{[%emt 0:00:17]} 10. h3 {[%emt 0:00:07]} Na6 {[%emt 0:00:00]} 11. Bf4 {[%emt 0:
00:09]} Nc7 {[%emt 0:00:19]} 12. Re1 {[%emt 0:00:08]} a4 {[%emt 0:00:25]} 13.
a3 {[%emt 0:00:32]} Nd5 {[%emt 0:00:15]} 14. Bh2 {[%emt 0:00:12]} b5 {[%emt 0:
00:17]} 15. c4 {[%emt 0:01:15]} bxc4 {[%emt 0:00:20]} 16. Bxc4 {[%emt 0:00:03]}
Qb6 {[%emt 0:02:42]} 17. Qd2 {[%emt 0:00:15]} Ba6 {[%emt 0:00:19]} 18. Bxa6 {
[%emt 0:01:36]} Qxa6 {[%emt 0:00:05]} 19. Rac1 {[%emt 0:00:03]} Rfe8 {[%emt 0:
00:09]} 20. Qc2 {[%emt 0:00:51]} Rxe1+ {[%emt 0:00:39]} 21. Rxe1 {[%emt 0:01:
21]} h5 {[%emt 0:00:23]} 22. h4 {[%emt 0:01:30]} Qb5 {[%emt 0:00:38]} 23. Nd2 {
[%emt 0:00:44]} f5 {[%emt 0:00:35]} 24. Be5 {[%emt 0:00:18]} Re8 {[%emt 0:01:
32]} 25. Nc4 {[%emt 0:00:13]} Re6 {[%emt 0:02:00]} 26. Re2 {[%emt 0:03:52]} Bf8
{[%emt 0:01:09]} 27. Kf1 {[%emt 0:02:55]} f4 {[%emt 0:00:37]} 28. Nd2 {[%emt 0:
00:57]} Kh7 {[%emt 0:01:17]} 29. Qc4 {[%emt 0:00:02]} Be7 {[%emt 0:03:21]} 30.
Qxb5 {[%emt 0:00:23]} cxb5 {[%emt 0:00:01]} 31. g3 {[%emt 0:00:16]} Rc6 {
[%emt 0:00:35]} 32. Nf3 {[%emt 0:00:11]} fxg3 {[%emt 0:00:15]} 33. fxg3 {
[%emt 0:00:08]} f6 {[%emt 0:00:09]} 34. Bb8 {[%emt 0:00:02]} Kg7 {[%emt 0:00:
07]} 35. Ke1 {[%emt 0:00:19]} Kf7 {[%emt 0:00:06]} 36. Kd2 {[%emt 0:00:04]} Rc8
{[%emt 0:00:27]} 37. Ba7 {[%emt 0:00:14]} Rc7 {[%emt 0:00:04]} 38. Bc5 {
[%emt 0:00:03]} Bxc5 {[%emt 0:00:04]} 39. dxc5 {[%emt 0:00:02]} Rxc5 {[%emt 0:
00:06]} 40. Nd4 {[%emt 0:00:00]} Nb6 {[%emt 0:00:14]} 41. Ne6 {[%emt 0:00:37]}
Re5 {[%emt 0:00:40]} 42. Rxe5 {[%emt 0:00:03]} fxe5 {[%emt 0:00:00]} 43. Nc7 {
[%emt 0:00:00]} Nc4+ {[%emt 0:00:05]} 44. Kc3 {[%emt 0:00:09]} Nd6 {[%emt 0:00:
00]} 45. Kb4 {[%emt 0:00:00]} e4 {[%emt 0:00:17]} 46. Kc3 {[%emt 0:00:00]} Kf6
{[%emt 0:00:06]} 47. Kd4 {[%emt 0:00:00]} Kf5 {[%emt 0:00:03]} 48. Nd5 {
[%emt 0:00:25]} Kg4 {[%emt 0:00:07]} 49. Nf4 {[%emt 0:00:18]} Kf3 {[%emt 0:00:
09]} 50. Nxg6 {[%emt 0:00:30]} Nf5+ {[%emt 0:00:37]} 51. Kc3 {[%emt 0:00:16]}
e3 {[%emt 0:00:14]} 52. Ne5+ {[%emt 0:00:16]} Kxg3 {[%emt 0:00:07]} 53. Kd3 {
[%emt 0:00:02]} Kxh4 {[%emt 0:00:06]} 54. Ke4 {[%emt 0:00:02]} Nd6+ {[%emt 0:
00:51]} 55. Kf3 {[%emt 0:00:25]} Nc4 {[%emt 0:00:02]} 56. Nd3 {[%emt 0:00:06]}
Kg5 {[%emt 0:00:11]} 57. Nf4 {[%emt 0:00:13]} Nxb2 {[%emt 0:00:14]} 58. Ne6+ {
[%emt 0:00:00]} Kf6 {[%emt 0:00:16]} 59. Nc7 {[%emt 0:00:00]} Nc4 {[%emt 0:00:
11]} 60. Nxb5 {[%emt 0:00:04]} Ke5 {[%emt 0:00:06]} 61. Nc3 {[%emt 0:00:10]} h4
{[%emt 0:00:02]} 62. Nxa4 {[%emt 0:00:04]} Kd4 {[%emt 0:00:00]} 0-1

[Event "RUS-ch Rapid 2021"]
[Site "Sochi"]
[Date "2021.10.13"]
[Round "7.13"]
[White "Demidov, Mikhail"]
[Black "Zakhartsov, Vladimir"]
[Result "1/2-1/2"]
[ECO "A00"]
[WhiteElo "2551"]
[BlackElo "2514"]
[Annotator "RC"]
[PlyCount "59"]
[EventDate "2021.10.12"]
[EventType "swiss"]
[EventCountry "RUS"]
[SourceTitle "playchess.com"]
[Source "ChessBase"]
[SourceQuality "1"]
[TimeControl "900+10"]

1. g3 {[%emt 0:00:04]} e5 {[%emt 0:00:15]} 2. Bg2 {[%emt 0:00:05]} d5 {[%emt 0:
00:13]} 3. d3 {[%emt 0:00:00]} Nf6 {[%emt 0:00:00]} 4. a3 {[%emt 0:00:13]} c6 {
[%emt 0:00:09]} 5. Nc3 {[%emt 0:00:07]} Bf5 {[%emt 0:00:15]} 6. Nf3 {[%emt 0:
01:14]} Nbd7 {[%emt 0:00:28]} 7. O-O {[%emt 0:00:02]} h6 {[%emt 0:00:09]} 8.
Nd2 {[%emt 0:01:59]} Be7 {[%emt 0:01:02]} 9. e4 {[%emt 0:00:03]} dxe4 {[%emt 0:
00:10]} 10. Ncxe4 {[%emt 0:00:11]} O-O {[%emt 0:00:00]} 11. Nxf6+ {[%emt 0:00:
04]} Bxf6 {[%emt 0:00:16]} 12. Re1 {[%emt 0:00:07]} Re8 {[%emt 0:00:01]} 13.
Nc4 {[%emt 0:00:16]} Qc7 {[%emt 0:00:35]} 14. Bd2 {[%emt 0:00:45]} Be6 {
[%emt 0:00:36]} 15. Ne3 {[%emt 0:01:01]} e4 {[%emt 0:00:51]} 16. Bc3 {[%emt 0:
01:14]} exd3 {[%emt 0:00:43]} 17. cxd3 {[%emt 0:00:00]} Rad8 {[%emt 0:00:39]}
18. Qc2 {[%emt 0:00:21]} Qb6 {[%emt 0:02:29]} 19. Nc4 {[%emt 0:01:16]} Bxc4 {
[%emt 0:00:10]} 20. dxc4 {[%emt 0:00:00]} Bxc3 {[%emt 0:00:23]} 21. Qxc3 {
[%emt 0:00:13]} Nf6 {[%emt 0:00:23]} 22. c5 {[%emt 0:00:49]} Qc7 {[%emt 0:00:
01]} 23. b4 {[%emt 0:00:20]} Qd7 {[%emt 0:00:15]} 24. h3 {[%emt 0:00:26]} a6 {
[%emt 0:00:45]} 25. Rxe8+ {[%emt 0:00:27]} Rxe8 {[%emt 0:00:10]} 26. Re1 {
[%emt 0:00:36]} Rd8 {[%emt 0:00:16]} 27. Qe3 {[%emt 0:01:14]} Re8 {[%emt 0:00:
17]} 28. Qc3 {[%emt 0:00:06]} Rd8 {[%emt 0:00:04]} 29. Qe3 {[%emt 0:00:18]} Re8
{[%emt 0:00:58]} 30. Qc3 {[%emt 0:00:55]} 1/2-1/2

[Event "RUS-ch Rapid 2021"]
[Site "Sochi"]
[Date "2021.10.13"]
[Round "7.14"]
[White "Bryakin, Mikhail"]
[Black "Nozdrachev, Vladislav"]
[Result "1/2-1/2"]
[ECO "E06"]
[WhiteElo "2498"]
[BlackElo "2495"]
[Annotator "RC"]
[PlyCount "202"]
[EventDate "2021.10.12"]
[EventType "swiss"]
[EventCountry "RUS"]
[SourceTitle "playchess.com"]
[Source "ChessBase"]
[SourceQuality "1"]
[TimeControl "900+10"]

1. d4 {[%emt 0:00:00]} d5 {[%emt 0:00:09]} 2. Nf3 {[%emt 0:00:13]} Nf6 {
[%emt 0:00:00]} 3. c4 {[%emt 0:00:00]} e6 {[%emt 0:00:00]} 4. g3 {[%emt 0:00:
00]} Be7 {[%emt 0:00:31]} 5. Bg2 {[%emt 0:00:02]} O-O {[%emt 0:00:06]} 6. O-O {
[%emt 0:00:00]} dxc4 {[%emt 0:00:01]} 7. Qc2 {[%emt 0:00:00]} c6 {[%emt 0:00:
04]} 8. Qxc4 {[%emt 0:00:33]} b5 {[%emt 0:00:00]} 9. Qb3 {[%emt 0:00:28]} Bb7 {
[%emt 0:00:21]} 10. Rd1 {[%emt 0:00:41]} Qb6 {[%emt 0:00:42]} 11. Nc3 {[%emt 0:
00:39]} Nbd7 {[%emt 0:00:39]} 12. Bg5 {[%emt 0:00:26]} h6 {[%emt 0:02:20]} 13.
Bxf6 {[%emt 0:00:20]} Nxf6 {[%emt 0:00:05]} 14. Ne5 {[%emt 0:00:19]} Rfd8 {
[%emt 0:00:00]} 15. e3 {[%emt 0:00:13]} a6 {[%emt 0:01:09]} 16. Rac1 {[%emt 0:
00:25]} Bd6 {[%emt 0:03:19]} 17. Nc4 {[%emt 0:03:58]} Qc7 {[%emt 0:00:06]} 18.
Nxd6 {[%emt 0:00:05]} Qxd6 {[%emt 0:00:46]} 19. Na4 {[%emt 0:00:59]} bxa4 {
[%emt 0:03:29]} 20. Qxb7 {[%emt 0:00:00]} c5 {[%emt 0:00:25]} 21. Qc6 {[%emt 0:
04:24]} Qxc6 {[%emt 0:02:29]} 22. Bxc6 {[%emt 0:00:02]} Rab8 {[%emt 0:00:00]}
23. dxc5 {[%emt 0:00:27]} Rxd1+ {[%emt 0:00:11]} 24. Rxd1 {[%emt 0:00:00]} Rxb2
{[%emt 0:00:00]} 25. Bxa4 {[%emt 0:00:25]} Rxa2 {[%emt 0:00:15]} 26. c6 {
[%emt 0:03:49]} Nd5 {[%emt 0:00:03]} 27. Bb3 {[%emt 0:00:21]} Rb2 {[%emt 0:00:
02]} 28. Bxd5 {[%emt 0:00:20]} exd5 {[%emt 0:00:00]} 29. Rxd5 {[%emt 0:00:21]}
Rc2 {[%emt 0:00:03]} 30. Rd8+ {[%emt 0:00:09]} Kh7 {[%emt 0:00:00]} 31. Rc8 {
[%emt 0:00:12]} h5 {[%emt 0:00:07]} 32. h3 {[%emt 0:00:18]} a5 {[%emt 0:00:17]}
33. Kg2 {[%emt 0:00:03]} a4 {[%emt 0:00:00]} 34. Kf3 {[%emt 0:00:11]} a3 {
[%emt 0:00:04]} 35. c7 {[%emt 0:00:12]} g6 {[%emt 0:00:12]} 36. Ra8 {[%emt 0:
00:01]} Rxc7 {[%emt 0:00:00]} 37. Rxa3 {[%emt 0:00:03]} Kg7 {[%emt 0:00:09]}
38. Ra6 {[%emt 0:00:02]} Rc4 {[%emt 0:00:10]} 39. Rd6 {[%emt 0:00:01]} Ra4 {
[%emt 0:00:00]} 40. Rd4 {[%emt 0:00:02]} Ra2 {[%emt 0:00:00]} 41. Rd6 {[%emt 0:
00:02]} Ra4 {[%emt 0:00:15]} 42. Rb6 {[%emt 0:00:00]} Rc4 {[%emt 0:00:00]} 43.
Ra6 {[%emt 0:00:05]} Rb4 {[%emt 0:00:10]} 44. e4 {[%emt 0:00:10]} Rb3+ {
[%emt 0:00:00]} 45. Kf4 {[%emt 0:00:07]} h4 {[%emt 0:00:03]} 46. f3 {[%emt 0:
00:39]} hxg3 {[%emt 0:00:14]} 47. Kxg3 {[%emt 0:00:00]} Rb5 {[%emt 0:00:06]}
48. Kf4 {[%emt 0:00:14]} Rb1 {[%emt 0:00:13]} 49. Ra7 {[%emt 0:00:00]} Rh1 {
[%emt 0:00:04]} 50. Kg3 {[%emt 0:00:24]} Rg1+ {[%emt 0:00:04]} 51. Kf2 {
[%emt 0:00:00]} Rh1 {[%emt 0:00:00]} 52. Kg2 {[%emt 0:00:00]} Re1 {[%emt 0:00:
04]} 53. Ra8 {[%emt 0:00:09]} Rb1 {[%emt 0:00:36]} 54. Ra5 {[%emt 0:00:04]} Kh6
{[%emt 0:00:08]} 55. Rd5 {[%emt 0:00:09]} Kg7 {[%emt 0:00:09]} 56. h4 {[%emt 0:
00:05]} Ra1 {[%emt 0:00:00]} 57. h5 {[%emt 0:00:07]} gxh5 {[%emt 0:00:12]} 58.
Rxh5 {[%emt 0:00:00]} Kg6 {[%emt 0:00:00]} 59. Rf5 {[%emt 0:00:03]} f6 {
[%emt 0:00:03]} 60. Kg3 {[%emt 0:00:00]} Ra3 {[%emt 0:00:02]} 61. Kf4 {[%emt 0:
00:08]} Rb3 {[%emt 0:00:06]} 62. Ra5 {[%emt 0:00:00]} Rc3 {[%emt 0:00:03]} 63.
Ra6 {[%emt 0:00:01]} Rc5 {[%emt 0:00:10]} 64. Kg4 {[%emt 0:00:01]} Rg5+ {
[%emt 0:00:12]} 65. Kf4 {[%emt 0:00:03]} Rb5 {[%emt 0:00:10]} 66. Ra1 {[%emt 0:
00:02]} Rc5 {[%emt 0:00:07]} 67. Rg1+ {[%emt 0:00:01]} Kf7 {[%emt 0:00:02]} 68.
Ra1 {[%emt 0:00:06]} Kg6 {[%emt 0:00:01]} 69. Ra7 {[%emt 0:00:05]} Rb5 {
[%emt 0:00:03]} 70. Rd7 {[%emt 0:00:02]} Ra5 {[%emt 0:00:08]} 71. Rd5 {[%emt 0:
00:04]} Ra3 {[%emt 0:00:01]} 72. Rd6 {[%emt 0:00:08]} Ra5 {[%emt 0:00:04]} 73.
Ke3 {[%emt 0:00:02]} Ra1 {[%emt 0:00:54]} 74. Rc6 {[%emt 0:00:17]} Ra3+ {
[%emt 0:00:13]} 75. Kf2 {[%emt 0:00:05]} Ra4 {[%emt 0:00:10]} 76. Kg3 {[%emt 0:
00:06]} Ra5 {[%emt 0:00:00]} 77. f4 {[%emt 0:00:02]} Kf7 {[%emt 0:00:22]} 78.
Rc7+ {[%emt 0:00:00]} Kg6 {[%emt 0:01:05]} 79. f5+ {[%emt 0:01:05]} Kh6 {
[%emt 0:00:03]} 80. Kf4 {[%emt 0:00:09]} Ra1 {[%emt 0:00:30]} 81. Rf7 {[%emt 0:
00:02]} Ra6 {[%emt 0:00:05]} 82. Re7 {[%emt 0:00:13]} Ra1 {[%emt 0:00:03]} 83.
Rf7 {[%emt 0:00:04]} Ra6 {[%emt 0:00:01]} 84. Kg4 {[%emt 0:02:20]} Rb6 {
[%emt 0:00:05]} 85. Rd7 {[%emt 0:00:27]} Rb1 {[%emt 0:00:14]} 86. Kf3 {[%emt 0:
00:13]} Rf1+ {[%emt 0:00:14]} 87. Ke2 {[%emt 0:00:02]} Ra1 {[%emt 0:00:02]} 88.
Kf3 {[%emt 0:00:20]} Rf1+ {[%emt 0:00:05]} 89. Kg3 {[%emt 0:00:07]} Rg1+ {
[%emt 0:00:04]} 90. Kf2 {[%emt 0:00:02]} Ra1 {[%emt 0:00:00]} 91. Rf7 {[%emt 0:
00:33]} Kg5 {[%emt 0:00:05]} 92. Ke3 {[%emt 0:00:02]} Ra3+ {[%emt 0:00:44]} 93.
Kd4 {[%emt 0:00:01]} Ra5 {[%emt 0:00:50]} 94. Ke3 {[%emt 0:00:35]} Ra3+ {
[%emt 0:00:07]} 95. Kd4 {[%emt 0:00:01]} Kf4 {[%emt 0:00:31]} 96. Kd5 {[%emt 0:
00:24]} Ra5+ {[%emt 0:00:09]} 97. Ke6 {[%emt 0:00:09]} Ra6+ {[%emt 0:00:19]}
98. Kd5 {[%emt 0:00:02]} Ra5+ {[%emt 0:00:00]} 99. Ke6 {[%emt 0:00:03]} Kxe4 {
[%emt 0:00:11]} 100. Rxf6 {[%emt 0:00:16]} Re5+ {[%emt 0:00:01]} 101. Kd6 {
[%emt 0:00:02]} Rxf5 {[%emt 0:00:01]} 1/2-1/2